bitfinex/quotes_BTCUSD_20250616
["timestamp","ask_amount","ask_price","bid_price","bid_amount"]
[1750065115581,0.26315301,107280.0,107270.0,0.9067042]
[1750065115761,0.26315301,107280.0,107270.0,0.89738246]
[1750065116817,0.25383196,107280.0,107270.0,0.89738246]
[1750065118365,0.25383196,107280.0,107270.0,0.46672047]
[1750065118581,0.25383196,107280.0,107270.0,0.89738246]
[1750065121627,0.06740393,107280.0,107270.0,0.9067042]
[1750065121808,0.05808253,107280.0,107270.0,0.91602586]
[1750065122047,0.04876105,107280.0,107270.0,0.91602586]
[1750065122671,0.05808236,107280.0,107270.0,0.91602586]
[1750065123488,0.06740358,107280.0,107270.0,0.91602586]
[1750065123692,0.08604577,107280.0,107270.0,0.9067042]
[1750065124437,0.26315301,107280.0,107270.0,0.9067042]
[1750065125812,0.26315301,107280.0,107270.0,0.88806063]
[1750065126021,0.26315301,107280.0,107270.0,0.90670412]
[1750065126230,0.26315301,107280.0,107270.0,0.89738246]
[1750065126854,0.26315301,107280.0,107270.0,0.9067042]
[1750065128017,0.06740358,107280.0,107270.0,0.91602586]
[1750065134374,0.06740358,107280.0,107270.0,0.9067042]
[1750065135830,0.25383161,107280.0,107270.0,0.9067042]
[1750065136901,0.25383161,107280.0,107270.0,0.48536387]
[1750065137105,0.25383161,107280.0,107270.0,0.91602586]
[1750065137307,0.26315301,107280.0,107270.0,0.9067042]
[1750065137739,0.07672498,107280.0,107270.0,0.91602586]
[1750065137954,0.05808227,107280.0,107270.0,0.91602586]
[1750065138184,0.05808227,107280.0,107270.0,0.94532586]
[1750065138380,0.06740358,107280.0,107270.0,0.94532586]
[1750065138818,0.06740358,107280.0,107270.0,0.91602586]
[1750065140330,0.07672498,107280.0,107270.0,0.91602586]
[1750065140771,0.07672498,107280.0,107270.0,0.48532387]
[1750065141000,0.26315301,107280.0,107270.0,0.7545442]
[1750065141219,0.67517273,107280.0,107270.0,0.36116942]
[1750065143287,0.24451074,107280.0,107270.0,0.36116942]
[1750065143921,0.24451074,107280.0,107270.0,0.36116951]
[1750065144777,0.23518943,107280.0,107270.0,0.36116951]
[1750065144986,0.23518943,107280.0,107270.0,0.45731873]
[1750065145404,0.19574943,107280.0,107270.0,0.45731873]
[1750065145609,0.23506943,107280.0,107270.0,0.45731873]
[1750065146029,0.25354803,107280.0,107270.0,0.43867463]
[1750065146239,0.71381002,107280.0,107270.0,0.45731908]
[1750065146469,0.71381002,107280.0,107270.0,0.46664117]
[1750065148581,0.28314803,107280.0,107270.0,0.46664117]
[1750065149557,0.22574803,107280.0,107270.0,0.89730316]
[1750065149748,0.22574803,107280.0,107270.0,0.90662517]
[1750065151462,0.22574803,107280.0,107270.0,0.91594709]
[1750065151684,0.22574803,107280.0,107270.0,0.76386709]
[1750065151906,0.22574803,107280.0,107270.0,0.91594709]
[1750065152396,0.22574803,107280.0,107270.0,0.90662517]
[1750065153377,0.22574803,107280.0,107270.0,0.88798107]
[1750065153619,0.22574803,107280.0,107270.0,0.89730316]
[1750065154567,0.22574803,107280.0,107270.0,0.46664117]
[1750065154768,0.22574803,107280.0,107270.0,0.88798107]
[1750065155257,0.22574803,107280.0,107270.0,0.45731908]
[1750065155471,0.25394803,107280.0,107270.0,0.45731908]
[1750065155714,0.25394803,107280.0,107270.0,0.4479969]
[1750065155942,0.71321002,107280.0,107270.0,0.4479969]
[1750065156219,0.71321002,107280.0,107270.0,0.26155149]
[1750065156836,0.71321002,107280.0,107270.0,0.4479969]
[1750065157282,0.71321002,107280.0,107270.0,0.45731908]
[1750065158417,0.71321002,107280.0,107270.0,0.4479969]
[1750065158942,0.71321002,107280.0,107270.0,0.10014922]
[1750065159162,1.58011377,107280.0,107270.0,0.004]
[1750065159372,1.60251248,107280.0,107270.0,0.004]
[1750065161918,1.63053248,107280.0,107270.0,0.004]
[1750065164023,1.79715333,107280.0,107270.0,0.004]
[1750065166094,1.79715333,107280.0,107270.0,0.003]
[1750065167377,2.07773532,107280.0,107270.0,0.003]
[1750065167592,1.79915333,107280.0,107270.0,0.003]
[1750065167804,0.60110846,107260.0,107250.0,2.00004708]
[1750065168017,1.12801221,107260.0,107250.0,2.00004708]
[1750065168889,1.12801221,107260.0,107250.0,2.01750046]
[1750065169092,1.12801221,107260.0,107250.0,2.00004708]
[1750065169311,1.12801221,107260.0,107250.0,2.01750047]
[1750065169496,1.12801221,107260.0,107250.0,2.01850047]
[1750065169647,1.12801221,107260.0,107250.0,2.00104708]
[1750065169864,1.12801221,107260.0,107250.0,2.01850047]
[1750065170544,1.5586742,107260.0,107250.0,2.00104708]
[1750065171343,1.5586742,107260.0,107250.0,2.01850392]
[1750065171562,1.5586742,107260.0,107250.0,2.00104708]
[1750065172156,1.5586742,107260.0,107250.0,2.01850398]
[1750065172666,1.5586742,107260.0,107250.0,2.00104708]
[1750065173276,1.5586742,107260.0,107250.0,2.01850509]
[1750065173483,1.5586742,107260.0,107250.0,2.00104708]
[1750065173700,1.5586742,107260.0,107250.0,2.01850508]
[1750065174116,1.5586742,107260.0,107250.0,2.0185051]
[1750065174321,1.5586742,107260.0,107250.0,2.01850507]
[1750065174529,1.5586742,107260.0,107250.0,2.00104708]
[1750065174738,1.5586742,107260.0,107250.0,2.01850509]
[1750065174969,1.5586742,107260.0,107250.0,2.01850514]
[1750065175203,1.5586742,107260.0,107250.0,2.01850563]
[1750065175606,1.5979942,107260.0,107250.0,2.01850617]
[1750065176024,1.5979942,107260.0,107250.0,2.01850625]
[1750065176248,1.5979942,107260.0,107250.0,2.01850629]
[1750065176690,1.5979942,107260.0,107250.0,2.01850623]
[1750065177100,1.5979942,107260.0,107250.0,2.00104708]
[1750065177308,1.5979942,107260.0,107250.0,2.0185055]
[1750065177558,1.5979942,107260.0,107250.0,2.00104708]
[1750065177767,1.5979942,107260.0,107250.0,2.01850595]
[1750065177984,1.5979942,107260.0,107250.0,2.00104708]
[1750065178192,1.6260192,107260.0,107250.0,2.00104708]
[1750065178610,1.6260192,107260.0,107250.0,2.01845479]
[1750065178828,1.6260192,107260.0,107250.0,2.01845477]
[1750065179045,1.6260192,107260.0,107250.0,2.01845461]
[1750065179258,1.6260192,107260.0,107250.0,2.00104708]
[1750065179471,1.6260192,107260.0,107250.0,2.01845457]
[1750065179887,1.6260192,107260.0,107250.0,2.01845453]
[1750065180323,1.19535721,107260.0,107250.0,2.00104708]
[1750065180536,1.19535721,107260.0,107250.0,2.01845452]
[1750065180754,1.10003721,107260.0,107250.0,2.00104708]
[1750065180964,1.13939721,107260.0,107250.0,2.01845418]
[1750065181187,1.13939721,107260.0,107250.0,2.01845421]
[1750065181609,1.13939721,107260.0,107250.0,2.00104708]
[1750065182038,0.66937522,107260.0,107250.0,2.01845415]
[1750065182246,1.13939721,107260.0,107250.0,2.01845415]
[1750065182464,1.13939721,107260.0,107250.0,2.01845416]
[1750065182701,1.13939721,107260.0,107250.0,2.01845415]
[1750065182942,1.13939721,107260.0,107250.0,2.00104708]
[1750065183163,1.13939721,107260.0,107250.0,2.01845408]
[1750065183389,1.13939721,107260.0,107250.0,2.01845419]
[1750065183599,0.61249346,107260.0,107250.0,2.79816908]
[1750065183817,0.61249346,107260.0,107250.0,2.79816635]
[1750065184031,0.39599371,107260.0,107250.0,2.80748992]
[1750065184261,0.63113895,107260.0,107250.0,2.80748969]
[1750065184474,0.63113895,107260.0,107250.0,2.80748866]
[1750065184696,0.60311395,107260.0,107250.0,2.80748859]
[1750065184913,0.60311395,107260.0,107250.0,2.80748866]
[1750065185184,0.60311395,107260.0,107250.0,2.80748873]
[1750065185348,0.59379151,107260.0,107250.0,2.80748873]
[1750065185762,0.55443151,107260.0,107250.0,2.79008587]
[1750065185977,0.59375151,107260.0,107250.0,2.37682721]
[1750065186180,0.58442881,107260.0,107250.0,2.35818002]
[1750065186400,0.58442881,107260.0,107250.0,2.36750403]
[1750065186614,0.58442881,107260.0,107250.0,2.35010048]
[1750065186823,0.58442881,107260.0,107250.0,2.36750403]
[1750065187036,0.58442881,107260.0,107250.0,2.3594244]
[1750065187260,0.58442881,107260.0,107250.0,2.36874823]
[1750065187481,0.58442881,107260.0,107250.0,2.39547572]
[1750065187703,0.57510594,107260.0,107250.0,2.3594244]
[1750065187926,0.57510594,107260.0,107250.0,2.37682869]
[1750065188140,0.57510594,107260.0,107250.0,2.3594244]
[1750065188576,0.57510594,107260.0,107250.0,2.3768288]
[1750065188797,0.57510594,107260.0,107250.0,2.3594244]
[1750065189008,0.57510594,107260.0,107250.0,2.3780718]
[1750065189238,0.57510594,107260.0,107250.0,2.39547712]
[1750065189435,0.57510594,107260.0,107250.0,2.39548027]
[1750065189649,0.57510594,107260.0,107250.0,2.39548096]
[1750065189855,0.57510594,107260.0,107250.0,2.38615741]
[1750065190062,0.57510594,107260.0,107250.0,2.38615745]
[1750065190266,0.57510594,107260.0,107250.0,2.36874814]
[1750065190507,0.57510594,107260.0,107250.0,2.38616002]
[1750065190841,0.57510594,107260.0,107250.0,2.38621297]
[1750065191065,0.57510594,107260.0,107250.0,2.38621359]
[1750065191292,0.57510594,107260.0,107250.0,2.36874814]
[1750065191940,0.57510594,107260.0,107250.0,2.81687706]
[1750065192162,0.5657828,107260.0,107250.0,2.80755365]
[1750065192371,0.5657828,107260.0,107250.0,2.95963432]
[1750065192588,0.5657828,107260.0,107250.0,2.52897257]
[1750065192839,0.5657828,107260.0,107250.0,2.52897262]
[1750065193371,0.5657828,107260.0,107250.0,2.5196487]
[1750065193590,0.5657828,107260.0,107250.0,2.2873003]
[1750065193812,0.5657828,107260.0,107250.0,2.29544465]
[1750065194021,0.5657828,107260.0,107250.0,2.29544469]
[1750065194234,0.5657828,107260.0,107250.0,2.30476869]
[1750065194674,0.5657828,107260.0,107250.0,2.29544469]
[1750065194858,0.5657828,107260.0,107250.0,2.2779763]
[1750065195066,0.5657828,107260.0,107250.0,2.72610683]
[1750065195511,0.5657828,107260.0,107250.0,2.70863829]
[1750065195713,0.5657828,107260.0,107250.0,2.72610704]
[1750065195872,0.5657828,107260.0,107250.0,2.72610709]
[1750065196080,0.5657828,107260.0,107250.0,2.2954451]
[1750065196308,0.5657828,107260.0,107250.0,2.2779763]
[1750065196518,0.5657828,107260.0,107250.0,2.2954451]
[1750065196713,0.5657828,107260.0,107250.0,2.2779763]
[1750065196951,0.5657828,107260.0,107250.0,2.29544523]
[1750065197146,0.5657828,107260.0,107250.0,2.29544512]
[1750065197275,0.5657828,107260.0,107250.0,2.2779763]
[1750065197475,0.5657828,107260.0,107250.0,2.2954451]
[1750065199165,0.5657828,107260.0,107250.0,2.2779763]
[1750065199376,0.5657828,107260.0,107250.0,2.2954451]
[1750065201246,0.5657828,107260.0,107250.0,2.2779763]
[1750065201695,0.5657828,107260.0,107250.0,2.2954451]
[1750065201907,0.5657828,107260.0,107250.0,2.2667451]
[1750065202144,0.5657828,107260.0,107250.0,2.2492763]
[1750065202334,0.5657828,107260.0,107250.0,2.2667451]
[1750065202534,0.5657828,107260.0,107250.0,2.2492763]
[1750065202764,0.5657828,107260.0,107250.0,2.26674516]
[1750065203201,0.5657828,107260.0,107250.0,2.2492763]
[1750065203414,0.5657828,107260.0,107250.0,2.26674516]
[1750065203858,2.19871866,107260.0,107250.0,2.01851594]
[1750065204089,2.31742489,107260.0,107250.0,2.00104708]
[1750065204316,2.37343755,107260.0,107250.0,2.00104708]
[1750065204530,2.26402041,107260.0,107250.0,2.00104708]
[1750065204740,2.26402041,107260.0,107250.0,2.01852945]
[1750065204957,2.26402041,107260.0,107250.0,2.00104708]
[1750065205176,2.26402041,107260.0,107250.0,2.00004708]
[1750065205394,2.26402041,107260.0,107250.0,2.01752945]
[1750065205624,2.26402041,107260.0,107250.0,2.01752914]
[1750065205832,2.26402041,107260.0,107250.0,2.00004708]
[1750065206494,2.29196718,107260.0,107250.0,2.01752908]
[1750065206699,2.29196718,107260.0,107250.0,2.01752906]
[1750065206906,1.86425109,107260.0,107250.0,2.01752906]
[1750065207767,1.86425109,107260.0,107250.0,2.00004708]
[1750065207978,1.86425109,107260.0,107250.0,2.01752906]
[1750065208472,1.86425109,107260.0,107250.0,2.00004708]
[1750065208687,1.86425109,107260.0,107250.0,2.01752906]
[1750065208891,1.86425109,107260.0,107250.0,2.00004708]
[1750065209569,1.82697834,107260.0,107250.0,2.00004708]
[1750065209977,1.86425109,107260.0,107250.0,2.00004708]
[1750065211479,1.82697834,107260.0,107250.0,2.00004708]
[1750065211698,1.86425109,107260.0,107250.0,2.00004708]
[1750065212365,1.82697834,107260.0,107250.0,2.00004708]
[1750065216097,1.3958434,107260.0,107250.0,2.00004708]
[1750065217655,1.2044434,107260.0,107250.0,2.00004708]
[1750065217876,1.15410935,107260.0,107250.0,2.00004708]
[1750065218323,1.28980935,107260.0,107250.0,2.00004708]
[1750065218756,1.3121297,107260.0,107250.0,2.00004708]
[1750065219186,1.1600497,107260.0,107250.0,2.00004708]
[1750065219410,1.3121297,107260.0,107250.0,2.00004708]
[1750065219871,1.10618885,107260.0,107250.0,2.01848061]
[1750065220093,1.26955985,107260.0,107250.0,2.02884708]
[1750065220321,1.26955985,107260.0,107250.0,2.05834708]
[1750065220548,0.83842491,107260.0,107250.0,2.05834708]
[1750065220766,1.0538395,107260.0,107250.0,2.05834708]
[1750065221034,0.81410456,107260.0,107250.0,2.05834708]
[1750065221259,0.66202456,107260.0,107250.0,2.05834708]
[1750065221687,0.81410456,107260.0,107250.0,2.05834708]
[1750065222558,1.2452395,107260.0,107250.0,2.05834708]
[1750065223744,1.2472395,107260.0,107250.0,2.07581512]
[1750065223948,1.0558395,107260.0,107250.0,2.07581531]
[1750065224284,1.2472395,107260.0,107250.0,2.075815]
[1750065224621,1.2472395,107260.0,107250.0,2.07581483]
[1750065224845,1.2472395,107260.0,107250.0,2.05834708]
[1750065225278,1.2472395,107260.0,107250.0,2.07581495]
[1750065225486,1.2472395,107260.0,107250.0,2.05834708]
[1750065225699,0.81610456,107260.0,107250.0,2.07581491]
[1750065225925,1.2472395,107260.0,107250.0,2.07581492]
[1750065226140,1.2472395,107260.0,107250.0,2.05834708]
[1750065226331,1.2472395,107260.0,107250.0,2.0758149]
[1750065226520,1.2472395,107260.0,107250.0,2.05834708]
[1750065226727,1.2472395,107260.0,107250.0,2.07581482]
[1750065227141,1.0558395,107260.0,107250.0,2.05834708]
[1750065227368,1.2472395,107260.0,107250.0,2.0758148]
[1750065227570,1.2472395,107260.0,107250.0,2.07581471]
[1750065227794,1.2472395,107260.0,107250.0,2.05834708]
[1750065228005,1.2472395,107260.0,107250.0,2.07581467]
[1750065228428,1.2472395,107260.0,107250.0,2.05834708]
[1750065228676,1.2472395,107260.0,107250.0,2.07581468]
[1750065228890,1.2472395,107260.0,107250.0,2.02884708]
[1750065229103,1.2472395,107260.0,107250.0,2.01751562]
[1750065229332,1.2472395,107260.0,107250.0,2.01751594]
[1750065229561,1.7590095,107260.0,107250.0,2.00004708]
[1750065229843,1.35501741,107260.0,107250.0,2.01751909]
[1750065230097,1.34241541,107260.0,107250.0,2.01752127]
[1750065230331,1.37044341,107260.0,107250.0,2.00004708]
[1750065231197,1.37044341,107260.0,107250.0,2.01752132]
[1750065232569,1.39835873,107260.0,107250.0,2.00004708]
[1750065232790,1.39835873,107260.0,107250.0,2.01752132]
[1750065233014,1.39835873,107260.0,107250.0,2.00004708]
[1750065233230,1.39835873,107260.0,107250.0,2.01752173]
[1750065233622,1.39835873,107260.0,107250.0,2.00004708]
[1750065233890,1.39835873,107260.0,107250.0,2.01752224]
[1750065234100,1.39835873,107260.0,107250.0,2.00004708]
[1750065234521,1.39835873,107260.0,107250.0,2.01752206]
[1750065234810,1.39835873,107260.0,107250.0,2.01752001]
[1750065235368,1.20695873,107260.0,107250.0,2.00004708]
[1750065235572,1.39835873,107260.0,107250.0,2.01751989]
[1750065235953,1.39835873,107260.0,107250.0,2.00004708]
[1750065236195,1.39835873,107260.0,107250.0,2.01751989]
[1750065236392,1.39835873,107260.0,107250.0,2.0174963]
[1750065236602,1.39835873,107260.0,107250.0,2.00004708]
[1750065237032,1.39835873,107260.0,107250.0,2.01749643]
[1750065237236,1.39835873,107260.0,107250.0,2.00004708]
[1750065237453,1.39835873,107260.0,107250.0,2.01749643]
[1750065237667,1.39835873,107260.0,107250.0,2.00004708]
[1750065237886,1.39835873,107260.0,107250.0,2.01749632]
[1750065238286,1.39835873,107260.0,107250.0,2.00004708]
[1750065238498,1.39835873,107260.0,107250.0,2.01749597]
[1750065238700,1.39835873,107260.0,107250.0,2.00004708]
[1750065238931,1.39835873,107260.0,107250.0,2.01749588]
[1750065239795,1.39835873,107260.0,107250.0,2.00004708]
[1750065240042,1.39835873,107260.0,107250.0,2.01749588]
[1750065240267,1.39835873,107260.0,107250.0,2.00004708]
[1750065240689,1.82949367,107260.0,107250.0,2.01749625]
[1750065240903,1.86671409,107260.0,107250.0,2.01749715]
[1750065241112,1.86671409,107260.0,107250.0,2.0174976]
[1750065241340,1.86671409,107260.0,107250.0,2.01749767]
[1750065241545,1.86671409,107260.0,107250.0,2.01749773]
[1750065243272,1.86671409,107260.0,107250.0,2.01749759]
[1750065243521,1.86671409,107260.0,107250.0,2.00004708]
[1750065243742,1.86671409,107260.0,107250.0,2.0175211]
[1750065244215,1.86671409,107260.0,107250.0,2.01752111]
[1750065244434,1.86677954,107260.0,107250.0,2.01752105]
[1750065244642,1.86677954,107260.0,107250.0,2.01752061]
[1750065244862,1.86677954,107260.0,107250.0,2.01752059]
[1750065245071,1.86677954,107260.0,107250.0,2.01752044]
[1750065245508,1.86677954,107260.0,107250.0,2.00004708]
[1750065245715,1.86677954,107260.0,107250.0,2.01752007]
[1750065246129,1.86677954,107260.0,107250.0,2.00004708]
[1750065246332,1.86677954,107260.0,107250.0,2.01751844]
[1750065246591,1.86677954,107260.0,107250.0,2.03498888]
[1750065246799,1.86677954,107260.0,107250.0,2.0349888]
[1750065246998,1.86677954,107260.0,107250.0,2.01751844]
[1750065247210,1.86677954,107260.0,107250.0,2.03498924]
[1750065247424,1.86677954,107260.0,107250.0,2.01751844]
[1750065247911,1.86677954,107260.0,107250.0,2.03498984]
[1750065248103,1.86677954,107260.0,107250.0,2.01751844]
[1750065248738,1.86677954,107260.0,107250.0,2.03498982]
[1750065248939,1.86677954,107260.0,107250.0,2.03498981]
[1750065249151,1.86677954,107260.0,107250.0,2.01751844]
[1750065249152,1.90743652,107260.0,107250.0,2.01751844]
[1750065249376,1.90743652,107260.0,107250.0,2.03499475]
[1750065249579,1.90743652,107260.0,107250.0,2.03499602]
[1750065249790,1.85160588,107260.0,107250.0,2.03499602]
[1750065250008,1.85160588,107260.0,107250.0,2.03499653]
[1750065250213,1.85160588,107260.0,107250.0,2.03499649]
[1750065250429,1.90550485,107260.0,107250.0,2.03499648]
[1750065250632,1.91350485,107260.0,107250.0,2.01751844]
[1750065250849,1.91350485,107260.0,107250.0,2.03499649]
[1750065251053,1.91350485,107260.0,107250.0,2.0349965]
[1750065251274,1.91350485,107260.0,107250.0,2.01751844]
[1750065251485,1.91350485,107260.0,107250.0,2.03499651]
[1750065251728,1.91350485,107260.0,107250.0,2.0349965]
[1750065251933,1.91350485,107260.0,107250.0,2.01751844]
[1750065257595,1.85760588,107260.0,107250.0,2.01751844]
[1750065258039,1.95076366,107260.0,107250.0,1.60845076]
[1750065258220,1.91350055,107260.0,107250.0,1.60845076]
[1750065263680,6.96350055,107260.0,107250.0,1.60845076]
[1750065265184,7.01350055,107260.0,107250.0,1.60845076]
[1750065268036,7.03204673,107260.0,107250.0,1.55241035]
[1750065268274,6.95760588,107260.0,107250.0,1.55241035]
[1750065268494,7.03204673,107260.0,107250.0,1.55241035]
[1750065269351,6.95760588,107260.0,107250.0,1.55241035]
[1750065269581,7.03204673,107260.0,107250.0,1.55241035]
[1750065270186,7.03204673,107260.0,107250.0,1.14334267]
[1750065270187,7.05702371,107260.0,107250.0,1.14334267]
[1750065271508,7.05202371,107260.0,107250.0,1.14334267]
[1750065271922,7.05802371,107260.0,107250.0,1.14334267]
[1750065272406,7.03088086,107260.0,107250.0,1.14334267]
[1750065272624,7.02788086,107260.0,107250.0,1.14334267]
[1750065272834,7.03188086,107260.0,107250.0,1.14334267]
[1750065273478,7.02788086,107260.0,107250.0,1.14334267]
[1750065273716,7.03188086,107260.0,107250.0,1.14334267]
[1750065275109,7.05902371,107260.0,107250.0,1.14334267]
[1750065275793,7.07770371,107260.0,107250.0,1.14334267]
[1750065276874,7.021824,107260.0,107250.0,1.14334267]
[1750065277304,7.10410866,107260.0,107250.0,0.73427499]
[1750065278698,7.04818916,107260.0,107250.0,0.73427499]
[1750065278923,7.06238916,107260.0,107250.0,0.73427499]
[1750065280208,7.11831968,107260.0,107250.0,0.32520731]
[1750065280424,7.06238916,107260.0,107250.0,0.32520731]
[1750065280849,7.11831977,107260.0,107250.0,0.32520731]
[1750065281208,7.16069916,107260.0,107250.0,0.32520731]
[1750065281430,7.2401841,107260.0,107250.0,0.32520731]
[1750065283331,0.55970669,107230.0,107220.0,2.0303]
[1750065283555,1.32881073,107230.0,107220.0,2.03034708]
[1750065283963,1.35685173,107230.0,107220.0,2.03034708]
[1750065285239,1.51165113,107230.0,107220.0,2.03034708]
[1750065285667,1.51165113,107230.0,107220.0,2.03134708]
[1750065286079,1.35685173,107230.0,107220.0,2.03134708]
[1750065286940,1.35704271,107230.0,107220.0,2.03134708]
[1750065287152,1.62600271,107230.0,107220.0,2.03134708]
[1750065288583,1.62600271,107230.0,107220.0,2.06134708]
[1750065291306,1.57567537,107230.0,107220.0,2.06134708]
[1750065291490,1.62602704,107230.0,107220.0,2.06134708]
[1750065293448,1.69126912,107230.0,107220.0,2.06134708]
[1750065294115,1.83810809,107230.0,107220.0,2.06134708]
[1750065294334,1.69126912,107230.0,107220.0,2.06134708]
[1750065294767,1.83582843,107230.0,107220.0,2.06134708]
[1750065295374,1.40450251,107230.0,107220.0,2.06134708]
[1750065295780,1.21310251,107230.0,107220.0,2.06134708]
[1750065296002,1.40450251,107230.0,107220.0,2.06134708]
[1750065296614,1.83582843,107230.0,107220.0,2.06134708]
[1750065296824,1.69126912,107230.0,107220.0,2.06134708]
[1750065297752,2.63020871,107230.0,107220.0,0.82298508]
[1750065297977,0.34,107180.0,107170.0,0.062]
[1750065298212,1.2269277,107180.0,107170.0,0.062]
[1750065298429,0.5490203,107180.0,107170.0,0.062]
[1750065298661,0.64526206,107180.0,107170.0,0.062]
[1750065298875,1.13379406,107180.0,107170.0,0.062]
[1750065299089,0.94227406,107180.0,107170.0,0.062]
[1750065299313,0.93443639,107180.0,107170.0,0.49350811]
[1750065299525,1.12599639,107180.0,107170.0,0.49350811]
[1750065299733,0.85703639,107180.0,107170.0,0.49350811]
[1750065299942,0.70479639,107180.0,107170.0,0.062]
[1750065300157,0.85703639,107180.0,107170.0,0.062]
[1750065301487,0.87938866,107180.0,107170.0,0.062]
[1750065301912,0.85703639,107180.0,107170.0,0.062]
[1750065302341,1.19452612,107180.0,107170.0,0.062]
[1750065302551,1.38624612,107180.0,107170.0,0.062]
[1750065304309,0.95469801,107180.0,107170.0,0.062]
[1750065304542,0.66547639,107180.0,107170.0,0.49350811]
[1750065304762,0.85715639,107180.0,107170.0,0.49350811]
[1750065305704,0.85715639,107180.0,107170.0,0.062]
[1750065306357,0.62288354,107180.0,107170.0,0.49350811]
[1750065306589,0.81456354,107180.0,107170.0,0.49350811]
[1750065307675,0.66232354,107180.0,107170.0,0.49350811]
[1750065307911,0.81468354,107180.0,107170.0,0.49350811]
[1750065308764,0.81464354,107180.0,107170.0,0.49350811]
[1750065313791,0.66232354,107180.0,107170.0,0.49350811]
[1750065314229,0.62288354,107180.0,107170.0,0.49350811]
[1750065314445,0.66232354,107180.0,107170.0,0.49350811]
[1750065314845,0.81452354,107180.0,107170.0,0.49350811]
[1750065317186,0.81452354,107180.0,107170.0,0.062]
[1750065317923,0.81452354,107180.0,107170.0,0.49550811]
[1750065318676,0.81452354,107180.0,107170.0,0.066]
[1750065318881,0.81452354,107180.0,107170.0,0.49750811]
[1750065319082,0.81452354,107180.0,107170.0,0.066]
[1750065319293,0.81452354,107180.0,107170.0,0.49750811]
[1750065320951,0.62288354,107180.0,107170.0,0.49750811]
[1750065321158,0.81476354,107180.0,107170.0,0.49750811]
[1750065321396,0.81472354,107180.0,107170.0,0.68412749]
[1750065321633,0.62288354,107180.0,107170.0,0.49750811]
[1750065321876,0.81472354,107180.0,107170.0,0.49750811]
[1750065322903,0.66232354,107180.0,107170.0,0.49750811]
[1750065323114,0.62288354,107180.0,107170.0,0.49750811]
[1750065323347,0.66232354,107180.0,107170.0,0.49750811]
[1750065324414,0.62288354,107180.0,107170.0,0.49750811]
[1750065324539,0.66232354,107180.0,107170.0,0.49750811]
[1750065325195,0.62288354,107180.0,107170.0,0.49750811]
[1750065325593,0.66232354,107180.0,107170.0,0.49750811]
[1750065326423,0.62288354,107180.0,107170.0,0.49750811]
[1750065326631,0.66232354,107180.0,107170.0,0.49750811]
[1750065327032,0.62288354,107180.0,107170.0,0.56844088]
[1750065327207,0.66232354,107180.0,107170.0,0.56844088]
[1750065327429,0.62288354,107180.0,107170.0,0.56844088]
[1750065327632,0.66232354,107180.0,107170.0,0.56844088]
[1750065328669,0.62288354,107180.0,107170.0,0.56844088]
[1750065329332,0.66232354,107180.0,107170.0,0.56844088]
[1750065329571,0.62288354,107180.0,107170.0,0.56844088]
[1750065329778,0.66232354,107180.0,107170.0,0.56844088]
[1750065330217,0.62288354,107180.0,107170.0,0.56844088]
[1750065330425,0.66232354,107180.0,107170.0,0.56844088]
[1750065330849,0.69036854,107180.0,107170.0,0.56844088]
[1750065331487,0.69036854,107180.0,107170.0,0.49750811]
[1750065333627,0.71276937,107180.0,107170.0,0.49750811]
[1750065334040,0.71276937,107180.0,107170.0,0.066]
[1750065334477,0.71276937,107180.0,107170.0,0.06833249]
[1750065334693,0.68472437,107180.0,107170.0,0.06833249]
[1750065335391,0.68472437,107180.0,107170.0,0.066]
[1750065336320,0.64528437,107180.0,107170.0,0.06833248]
[1750065336535,0.68472437,107180.0,107170.0,0.06833248]
[1750065337575,0.68472437,107180.0,107170.0,0.066]
[1750065337792,0.68472437,107180.0,107170.0,0.06833248]
[1750065338857,0.68472437,107180.0,107170.0,0.08584116]
[1750065339537,0.68472437,107180.0,107170.0,0.06833248]
[1750065339854,0.68472437,107180.0,107170.0,0.08584198]
[1750065339855,0.66232354,107180.0,107170.0,0.06833248]
[1750065340081,0.66232354,107180.0,107170.0,0.08584247]
[1750065340289,0.66232354,107180.0,107170.0,0.08584233]
[1750065340543,0.66232354,107180.0,107170.0,0.06833248]
[1750065340769,0.68473594,107180.0,107170.0,0.08584235]
[1750065340980,0.68473594,107180.0,107170.0,0.06833248]
[1750065341403,0.68473594,107180.0,107170.0,0.08584216]
[1750065341609,0.68473594,107180.0,107170.0,0.08350968]
[1750065341834,0.68473594,107180.0,107170.0,0.08350967]
[1750065342036,0.68473594,107180.0,107170.0,0.08350968]
[1750065342894,0.68473594,107180.0,107170.0,0.06833248]
[1750065343100,0.68473594,107180.0,107170.0,0.08584214]
[1750065343310,0.68473594,107180.0,107170.0,0.08350966]
[1750065343570,0.68473594,107180.0,107170.0,0.066]
[1750065343738,0.68473594,107180.0,107170.0,0.08584219]
[1750065343951,0.68473594,107180.0,107170.0,0.06833248]
[1750065344807,0.68473594,107180.0,107170.0,0.08584221]
[1750065345010,0.68473594,107180.0,107170.0,0.0858421]
[1750065345426,0.64529594,107180.0,107170.0,0.06833248]
[1750065345624,0.68461594,107180.0,107170.0,0.06833248]
[1750065345832,0.68461594,107180.0,107170.0,0.08584246]
[1750065346660,0.68461594,107180.0,107170.0,0.06833248]
[1750065346865,0.68461594,107180.0,107170.0,0.0858425]
[1750065347072,0.68461594,107180.0,107170.0,0.08584426]
[1750065347278,0.68461594,107180.0,107170.0,0.06833248]
[1750065347522,0.68461594,107180.0,107170.0,0.08584425]
[1750065347715,0.68461594,107180.0,107170.0,0.06833248]
[1750065348158,0.68461594,107180.0,107170.0,0.0858443]
[1750065348383,0.68461594,107180.0,107170.0,0.08584427]
[1750065348592,0.68461594,107180.0,107170.0,0.06833248]
[1750065349040,0.68461594,107180.0,107170.0,0.08584426]
[1750065349481,0.68461594,107180.0,107170.0,0.06833248]
[1750065349736,0.68461594,107180.0,107170.0,0.08584426]
[1750065349977,0.57700386,107180.0,107170.0,0.81202281]
[1750065350195,0.58458189,107180.0,107170.0,0.17289935]
[1750065350415,0.58458189,107180.0,107170.0,0.49750811]
[1750065350632,0.58458189,107180.0,107170.0,0.51501679]
[1750065350858,0.58458189,107180.0,107170.0,0.49350811]
[1750065351074,0.58458189,107180.0,107170.0,0.51101763]
[1750065351303,0.58458189,107180.0,107170.0,0.51901768]
[1750065351956,0.58458189,107180.0,107170.0,0.59199834]
[1750065352150,0.58458189,107180.0,107170.0,0.61883918]
[1750065352361,0.58458189,107180.0,107170.0,0.6188391]
[1750065352566,0.58458189,107180.0,107170.0,0.61883907]
[1750065353148,0.58458189,107180.0,107170.0,0.6013293]
[1750065353481,0.58458189,107180.0,107170.0,0.6188391]
[1750065353729,0.58458189,107180.0,107170.0,0.79727956]
[1750065353928,0.58458189,107180.0,107170.0,0.81478936]
[1750065354117,0.58458189,107180.0,107170.0,0.82411998]
[1750065354520,0.58458189,107180.0,107170.0,0.82410776]
[1750065354725,0.58458189,107180.0,107170.0,0.8241075]
[1750065355197,0.58458189,107180.0,107170.0,0.82410738]
[1750065355362,0.54526189,107180.0,107170.0,0.82410738]
[1750065355577,0.54526189,107180.0,107170.0,0.82410731]
[1750065355578,0.58458189,107180.0,107170.0,0.82410731]